fUSD/lending_fUSD_20260621
["ID","MTS","AMOUNT","RATE_DAILY","PERIOD"]
[425842155,1781974242000,-215.0,0.00024,2]
[425842161,1781974242000,-153.14864244,0.00024295,2]
[425842167,1781974242000,-250.0,0.00024658,4]
[425842168,1781974242000,-1000.0,0.00024658,2]
[425842164,1781974242000,-150.0,0.00024333,2]
[425842165,1781974242000,-1783.53,0.00024575,2]
[425842158,1781974242000,-152.65821072,0.00024239,2]
[425842159,1781974242000,-8985.56995184,0.00024289,2]
[425842157,1781974242000,-194.72792766,0.00024239,2]
[425842153,1781974242000,-164.0,0.00024,2]
[425842162,1781974242000,-2405.55389863,0.00024295,2]
[425842160,1781974242000,-200.0,0.00024295,2]
[425842244,1781974243000,-934.0,0.00026395,2]
[425842239,1781974243000,-1229.0,0.00026395,2]
[425842249,1781974243000,-150.184,0.00026395,2]
[425842241,1781974243000,-278.0,0.00026395,2]
[425842242,1781974243000,-251.0,0.00026395,2]
[425842243,1781974243000,-221.0,0.00026395,2]
[425842246,1781974243000,-150.397,0.00026395,2]
[425842245,1781974243000,-208.887,0.00026395,2]
[425842247,1781974243000,-292.334,0.00026395,2]
[425842248,1781974243000,-215.0,0.00026395,2]
[425842254,1781974243000,-186.09459873,0.00026502,21]
[425842251,1781974243000,-250.0,0.00026477,2]
[425842252,1781974243000,-264.0,0.00026477,5]
[425842258,1781974243000,-2533.0,0.00026716,5]
[425842253,1781974243000,-250.0,0.00026477,2]
[425842257,1781974243000,-3420.0,0.00026716,5]
[425842255,1781974243000,-8985.56995184,0.00026533,2]
[425842256,1781974243000,-200.0,0.00026602,2]
[425842259,1781974243000,-505.0,0.00027137,2]
[425842261,1781974243000,-845.46,0.00027274,7]
[425842238,1781974243000,-383.0,0.00026395,2]
[425842262,1781974243000,-1478.26156956,0.00027397,2]
[425842250,1781974243000,-290.817513,0.00026476,2]
[425842240,1781974243000,-200.0,0.00026395,2]
[425842226,1781974243000,-152.0,0.00025874,3]
[425842237,1781974243000,-1276.0,0.00026395,2]
[425842264,1781974243000,-183.33,0.00027397,2]
[425842218,1781974243000,-200.0,0.00025391,2]
[425842215,1781974243000,-747.80937859,0.00025334,2]
[425842219,1781974243000,-2586.85809042,0.00025391,2]
[425842217,1781974243000,-152.65821072,0.00025335,2]
[425842216,1781974243000,-209.40437684,0.00025335,2]
[425842212,1781974243000,-277.7898272,0.00025238,30]
[425842214,1781974243000,-599.60298507,0.00025334,2]
[425842221,1781974243000,-500.0,0.00025646,2]
[425842220,1781974243000,-8985.56995184,0.00025411,2]
[425842213,1781974243000,-229.264868,0.00025322,7]
[425842236,1781974243000,-3560.0,0.00026395,2]
[425842223,1781974243000,-150.05156038,0.00025706,2]
[425842224,1781974243000,-801.82,0.00025786,2]
[425842225,1781974243000,-16698.41,0.00025786,2]
[425842232,1781974243000,-1500.5093,0.00026164,2]
[425842233,1781974243000,-2183.97937808,0.00026165,2]
[425842228,1781974243000,-152.65821072,0.00025883,2]
[425842229,1781974243000,-1574.33881247,0.00025939,2]
[425842227,1781974243000,-174.61919141,0.00025883,2]
[425842230,1781974243000,-250.0,0.00026027,6]
[425842231,1781974243000,-2000.0,0.00026053,2]
[425842235,1781974243000,-165.639,0.00026395,2]
[425842234,1781974243000,-385.4,0.00026296,2]
[425842222,1781974243000,-162.81,0.00025659,2]
[425842263,1781974243000,-269.36820077,0.00027397,2]
[425842260,1781974243000,-2000.0,0.00027172,7]
[425842269,1781974243000,-369.404063,0.00027623,7]
[425842295,1781974243000,-1436.0,0.00027918,2]
[425842298,1781974243000,-158.07,0.00027999,30]
[425842296,1781974243000,-554.0,0.00027918,2]
[425842300,1781974243000,-162.9,0.00028006,30]
[425842297,1781974243000,-220.0,0.00027965,10]
[425842301,1781974243000,-164.33,0.00028012,30]
[425842299,1781974243000,-164.41,0.00028005,30]
[425842305,1781974243000,-239.25,0.00028056,2]
[425842303,1781974243000,-316.23,0.00028049,7]
[425842304,1781974243000,-236.9,0.00028049,2]
[425842302,1781974243000,-220.0,0.00028042,10]
[425842294,1781974243000,-317.13844584,0.00027875,7]
[425842306,1781974243000,-621.78829552,0.00028073,2]
[425842311,1781974243000,-162.9,0.00028242,7]
[425842309,1781974243000,-158.07,0.00028236,7]
[425842316,1781974243000,-500.0,0.00028356,60]
[425842314,1781974243000,-316.23,0.0002831,2]
[425842326,1781974243000,-316.23,0.00028571,30]
[425842323,1781974243000,-158.07,0.00028474,2]
[425842318,1781974243000,-522.39,0.000284,30]
[425842320,1781974243000,-505.0,0.00028459,3]
[425842324,1781974243000,-162.9,0.00028479,2]
[425842328,1781974243000,-700.0,0.00028612,2]
[425842265,1781974243000,-250.0,0.00027397,8]
[425842307,1781974243000,-775.4783256,0.00028073,2]
[425842293,1781974243000,-500.0,0.00027875,7]
[425842312,1781974243000,-385.4,0.00028267,2]
[425842289,1781974243000,-500.0,0.00027875,7]
[425842266,1781974243000,-2183.97937808,0.0002741,2]
[425842292,1781974243000,-500.0,0.00027875,7]
[425842268,1781974243000,-277.7898272,0.00027615,30]
[425842267,1781974243000,-500.0,0.000275,7]
[425842270,1781974243000,-8985.56995184,0.00027656,2]
[425842271,1781974243000,-152.0,0.00027739,4]
[425842273,1781974243000,-500.0,0.00027875,7]
[425842274,1781974243000,-500.0,0.00027875,7]
[425842275,1781974243000,-500.0,0.00027875,7]
[425842277,1781974243000,-500.0,0.00027875,7]
[425842276,1781974243000,-500.0,0.00027875,7]
[425842278,1781974243000,-500.0,0.00027875,7]
[425842272,1781974243000,-316.23,0.00027789,30]
[425842286,1781974243000,-500.0,0.00027875,7]
[425842288,1781974243000,-500.0,0.00027875,7]
[425842282,1781974243000,-500.0,0.00027875,7]
[425842291,1781974243000,-500.0,0.00027875,7]
[425842284,1781974243000,-500.0,0.00027875,7]
[425842287,1781974243000,-500.0,0.00027875,7]
[425842290,1781974243000,-500.0,0.00027875,7]
[425842283,1781974243000,-500.0,0.00027875,7]
[425842280,1781974243000,-500.0,0.00027875,7]
[425842281,1781974243000,-500.0,0.00027875,7]
[425842279,1781974243000,-500.0,0.00027875,7]
[425842285,1781974243000,-500.0,0.00027875,7]
[425842423,1781974244000,-150.0,0.00029395,2]
[425842421,1781974244000,-150.0,0.00029395,2]
[425842431,1781974244000,-150.0,0.00029395,2]
[425842411,1781974244000,-316.23,0.00029354,30]
[425842427,1781974244000,-934.0,0.00029395,2]
[425842405,1781974244000,-208.67261707,0.00029288,2]
[425842403,1781974244000,-1005.04,0.00029267,30]
[425842395,1781974244000,-10073.68947293,0.000291,2]
[425842407,1781974244000,-1005.04,0.00029333,30]
[425842401,1781974244000,-500.0,0.00029266,30]
[425842399,1781974244000,-1005.04,0.000292,30]
[425842433,1781974244000,-215.0,0.00029395,2]
[425842409,1781974244000,-220.0,0.00029335,10]
[425842419,1781974244000,-1229.0,0.00029395,2]
[425842445,1781974244000,-1500.5093,0.00029458,2]
[425842413,1781974244000,-3560.0,0.00029395,2]
[425842417,1781974244000,-383.0,0.00029395,2]
[425842415,1781974244000,-1276.0,0.00029395,2]
[425842429,1781974244000,-150.0,0.00029395,2]
[425842435,1781974244000,-1005.04,0.000294,30]
[425842437,1781974244000,-2437.407,0.00029412,22]
[425842439,1781974244000,-169.922,0.00029412,22]
[425842447,1781974244000,-1005.04,0.00029467,30]
[425842441,1781974244000,-164.41,0.00029426,2]
[425842443,1781974244000,-164.33,0.00029428,2]
[425842459,1781974244000,-500.0,0.00029589,2]
[425842461,1781974244000,-500.0,0.00029589,2]
[425842451,1781974244000,-1005.04,0.00029533,30]
[425842397,1781974244000,-1005.04,0.00029133,30]
[425842425,1781974244000,-150.0,0.00029395,2]
[425842393,1781974244000,-316.23,0.00029093,2]
[425842341,1781974244000,-1340.0,0.0002874,2]
[425842385,1781974244000,-6219.0,0.00029,5]
[425842330,1781974244000,-2183.97937808,0.00028655,2]
[425842335,1781974244000,-164.41,0.00028715,7]
[425842339,1781974244000,-164.33,0.0002872,7]
[425842337,1781974244000,-162.9,0.00028716,30]
[425842333,1781974244000,-158.07,0.00028711,30]
[425842342,1781974244000,-269.36820077,0.00028766,2]
[425842449,1781974244000,-144580.03034175,0.000295,4]
[425842344,1781974244000,-8985.56995184,0.00028778,2]
[425842348,1781974244000,-2000.0,0.00028856,2]
[425842353,1781974244000,-215.0,0.00028912,30]
[425842346,1781974244000,-316.23,0.00028832,7]
[425842351,1781974244000,-152.0,0.00028912,30]
[425842349,1781974244000,-745.0,0.00028912,30]
[425842356,1781974244000,-154.0,0.00028912,30]
[425842391,1781974244000,-1005.04,0.00029067,30]
[425842358,1781974244000,-603.0,0.00028912,30]
[425842362,1781974244000,-153.0,0.00028912,30]
[425842366,1781974244000,-315.0,0.00028912,30]
[425842364,1781974244000,-156.0,0.00028912,30]
[425842380,1781974244000,-162.9,0.00028953,7]
[425842378,1781974244000,-158.07,0.00028949,7]
[425842368,1781974244000,-162.0,0.00028912,30]
[425842370,1781974244000,-164.0,0.00028912,30]
[425842372,1781974244000,-178.0,0.00028914,30]
[425842376,1781974244000,-1746.67,0.00028927,2]
[425842374,1781974244000,-184.0,0.00028914,30]
[425842381,1781974244000,-7000.0,0.00029,2]
[425842383,1781974244000,-7000.0,0.00029,3]
[425842389,1781974244000,-1005.04,0.00029,30]
[425842387,1781974244000,-2449.0,0.00029,7]
[425842360,1781974244000,-542.0,0.00028912,30]
[425842455,1781974244000,-187.96327138,0.00029589,2]
[425842565,1781974244000,-250.0,0.00029797,14]
[425842453,1781974244000,-150.0,0.00029534,2]
[425842529,1781974244000,-316.0,0.000296,2]
[425842522,1781974244000,-500.0,0.00029589,2]
[425842525,1781974244000,-501.95393858,0.00029589,2]
[425842524,1781974244000,-500.0,0.00029589,2]
[425842531,1781974244000,-310.0,0.000296,2]
[425842533,1781974244000,-1005.04,0.000296,30]
[425842535,1781974244000,-152.0,0.00029604,5]
[425842546,1781974244000,-350.0,0.0002968,30]
[425842548,1781974244000,-3000.0,0.0002968,3]
[425842539,1781974244000,-1005.04,0.00029667,30]
[425842537,1781974244000,-316.23,0.00029615,7]
[425842541,1781974244000,-1000.0,0.0002967,2]
[425842550,1781974244000,-182.5595148,0.00029707,30]
[425842542,1781974244000,-1000.0,0.0002967,2]
[425842527,1781974244000,-1000.0,0.000296,2]
[425842552,1781974244000,-1005.04,0.00029733,30]
[425842556,1781974244000,-165.99655408,0.0002978,2]
[425842554,1781974244000,-165.9673423,0.0002977,2]
[425842558,1781974244000,-505.0,0.0002978,4]
[425842562,1781974244000,-350.0,0.00029797,14]
[425842564,1781974244000,-250.0,0.00029797,14]
[425842560,1781974244000,-187.96327138,0.00029795,2]
[425842579,1781974244000,-151.91809285,0.00029896,3]
[425842571,1781974244000,-1005.04,0.00029867,30]
[425842573,1781974244000,-316.23,0.00029876,2]
[425842575,1781974244000,-376.02874712,0.00029882,30]
[425842569,1781974244000,-7459.82,0.00029815,2]
[425842577,1781974244000,-500.0,0.00029882,2]
[425842581,1781974244000,-150.0,0.000299,2]
[425842457,1781974244000,-340.74584181,0.00029589,2]
[425842544,1781974244000,-1000.0,0.0002967,2]
[425842520,1781974244000,-500.0,0.00029589,2]
[425842567,1781974244000,-1005.04,0.000298,30]
[425842516,1781974244000,-414.0,0.00029589,2]
[425842518,1781974244000,-500.0,0.00029589,2]
[425842462,1781974244000,-500.0,0.00029589,2]
[425842463,1781974244000,-426.63398207,0.00029589,2]
[425842465,1781974244000,-500.0,0.00029589,2]
[425842468,1781974244000,-500.0,0.00029589,2]
[425842464,1781974244000,-500.0,0.00029589,2]
[425842472,1781974244000,-500.0,0.00029589,2]
[425842475,1781974244000,-150.0,0.00029589,2]
[425842470,1781974244000,-500.0,0.00029589,2]
[425842477,1781974244000,-150.0,0.00029589,2]
[425842481,1781974244000,-150.0,0.00029589,2]
[425842474,1781974244000,-150.0,0.00029589,2]
[425842479,1781974244000,-150.0,0.00029589,2]
[425842483,1781974244000,-150.0,0.00029589,2]
[425842487,1781974244000,-150.0,0.00029589,2]
[425842466,1781974244000,-500.0,0.00029589,2]
[425842491,1781974244000,-150.0,0.00029589,2]
[425842489,1781974244000,-150.0,0.00029589,2]
[425842508,1781974244000,-500.0,0.00029589,2]
[425842512,1781974244000,-500.0,0.00029589,2]
[425842504,1781974244000,-173.22239799,0.00029589,2]
[425842498,1781974244000,-150.0,0.00029589,2]
[425842496,1781974244000,-150.0,0.00029589,2]
[425842510,1781974244000,-500.0,0.00029589,2]
[425842500,1781974244000,-150.0,0.00029589,2]
[425842493,1781974244000,-275.37536327,0.00029589,2]
[425842502,1781974244000,-150.0,0.00029589,2]
[425842506,1781974244000,-500.0,0.00029589,2]
[425842514,1781974244000,-500.0,0.00029589,2]
[425842485,1781974244000,-150.0,0.00029589,2]
[425842494,1781974244000,-150.0,0.00029589,2]
[425842675,1781974245000,-68650.40436703,0.0003,7]
[425842654,1781974245000,-150.0,0.00029979,20]
[425842656,1781974245000,-1182216.1169219,0.0002998,7]
[425842636,1781974245000,-893.3602403,0.00029947,2]
[425842661,1781974245000,-151.0,0.00029997,7]
[425842673,1781974245000,-43167.21670612,0.0003,2]
[425842658,1781974245000,-200.0,0.0002998,2]
[425842671,1781974245000,-316.1320903,0.00029999,10]
[425842667,1781974245000,-300.0,0.00029999,10]
[425842665,1781974245000,-151.0,0.00029997,7]
[425842662,1781974245000,-151.0,0.00029997,7]
[425842638,1781974245000,-165.38310655,0.0002997,2]
[425842679,1781974245000,-930.45,0.0003,7]
[425842687,1781974245000,-250000.0,0.0003,2]
[425842677,1781974245000,-4117.15775551,0.0003,30]
[425842685,1781974245000,-157.0,0.0003,30]
[425842683,1781974245000,-500.0771165,0.0003,7]
[425842689,1781974245000,-631112.41692911,0.0003,2]
[425842700,1781974245000,-214.87,0.0003,7]
[425842691,1781974245000,-1125000.0,0.0003,30]
[425842695,1781974245000,-150.0,0.0003,2]
[425842681,1781974245000,-1000.0,0.0003,10]
[425842698,1781974245000,-150.0,0.0003,2]
[425842702,1781974245000,-4795.46020581,0.0003,2]
[425842634,1781974245000,-50544.2934013,0.00029947,2]
[425842697,1781974245000,-6701.95046081,0.0003,2]
[425842669,1781974245000,-300.0,0.00029999,10]
[425842652,1781974245000,-500.0,0.00029979,2]
[425842592,1781974245000,-691.36064594,0.000299,2]
[425842648,1781974245000,-345.76,0.00029979,30]
[425842693,1781974245000,-1020.28,0.0003,2]
[425842585,1781974245000,-8985.56995184,0.000299,2]
[425842583,1781974245000,-150.0,0.000299,10]
[425842587,1781974245000,-2183.97937808,0.000299,2]
[425842600,1781974245000,-215.0,0.00029912,30]
[425842602,1781974245000,-845.46,0.00029912,7]
[425842604,1781974245000,-154.0,0.00029912,30]
[425842598,1781974245000,-152.0,0.00029912,30]
[425842606,1781974245000,-603.0,0.00029912,30]
[425842591,1781974245000,-310.64936533,0.000299,5]
[425842594,1781974245000,-1739.88615816,0.000299,2]
[425842589,1781974245000,-3000.0,0.000299,3]
[425842647,1781974245000,-151.0,0.00029977,7]
[425842608,1781974245000,-542.0,0.00029912,30]
[425842596,1781974245000,-745.0,0.00029912,30]
[425842612,1781974245000,-156.0,0.00029912,30]
[425842615,1781974245000,-162.0,0.00029912,30]
[425842613,1781974245000,-315.0,0.00029912,30]
[425842617,1781974245000,-164.0,0.00029912,30]
[425842619,1781974245000,-178.0,0.00029914,30]
[425842630,1781974245000,-184.0,0.00029914,30]
[425842640,1781974245000,-1000.0,0.0002997,2]
[425842642,1781974245000,-1000.0,0.0002997,2]
[425842632,1781974245000,-1005.04,0.00029933,30]
[425842644,1781974245000,-1000.0,0.0002997,2]
[425842650,1781974245000,-500.0,0.00029979,2]
[425842610,1781974245000,-153.0,0.00029912,30]
[425842709,1781974245000,-4628.55592978,0.0003,2]
[425842707,1781974245000,-276435.42857,0.0003,2]
[425842803,1781974245000,-151.0,0.0003,7]
[425842777,1781974245000,-151.0,0.0003,7]
[425842766,1781974245000,-151.0,0.0003,7]
[425842762,1781974245000,-22500.0,0.0003,2]
[425842779,1781974245000,-151.0,0.0003,7]
[425842783,1781974245000,-151.0,0.0003,7]
[425842793,1781974245000,-151.0,0.0003,7]
[425842795,1781974245000,-151.0,0.0003,7]
[425842785,1781974245000,-151.0,0.0003,7]
[425842801,1781974245000,-9999.97,0.0003,2]
[425842797,1781974245000,-201.546939,0.0003,7]
[425842799,1781974245000,-151.0,0.0003,7]
[425842787,1781974245000,-151.0,0.0003,7]
[425842764,1781974245000,-151.0,0.0003,7]
[425842789,1781974245000,-151.0,0.0003,7]
[425842806,1781974245000,-151.0,0.0003,7]
[425842810,1781974245000,-151.0,0.0003,7]
[425842808,1781974245000,-9999.96,0.0003,2]
[425842812,1781974245000,-200.0,0.0003,2]
[425842814,1781974245000,-345.34558519,0.0003,2]
[425842816,1781974245000,-10000.0,0.0003,2]
[425842825,1781974245000,-151.0,0.0003,7]
[425842823,1781974245000,-195.871,0.0003,22]
[425842818,1781974245000,-200.0,0.0003,2]
[425842820,1781974245000,-3000.02,0.0003,2]
[425842822,1781974245000,-195.871,0.0003,22]
[425842713,1781974245000,-1273.42,0.0003,2]
[425842791,1781974245000,-151.0,0.0003,7]
[425842760,1781974245000,-151.0,0.0003,7]
[425842781,1781974245000,-9999.98,0.0003,2]
[425842775,1781974245000,-203.48,0.0003,2]
[425842711,1781974245000,-919.75542352,0.0003,2]
[425842724,1781974245000,-22500.0,0.0003,2]
[425842715,1781974245000,-826.36918217,0.0003,3]
[425842717,1781974245000,-22499.98,0.0003,2]
[425842705,1781974245000,-300.6547395,0.0003,7]
[425842723,1781974245000,-10000.0,0.0003,2]
[425842727,1781974245000,-12500.0,0.0003,2]
[425842719,1781974245000,-15000.0,0.0003,2]
[425842758,1781974245000,-1354.38,0.0003,2]
[425842729,1781974245000,-12500.0,0.0003,2]
[425842732,1781974245000,-10000.0,0.0003,2]
[425842731,1781974245000,-500.0,0.0003,60]
[425842738,1781974245000,-9999.98,0.0003,2]
[425842750,1781974245000,-272.974072,0.0003,7]
[425842721,1781974245000,-12500.0,0.0003,2]
[425842754,1781974245000,-272.974072,0.0003,7]
[425842734,1781974245000,-10000.0,0.0003,2]
[425842748,1781974245000,-272.974072,0.0003,7]
[425842744,1781974245000,-25000.0,0.0003,2]
[425842737,1781974245000,-151.0,0.0003,7]
[425842740,1781974245000,-9999.98,0.0003,2]
[425842752,1781974245000,-272.974072,0.0003,7]
[425842746,1781974245000,-2500.0,0.0003,2]
[425842769,1781974245000,-151.0,0.0003,7]
[425842756,1781974245000,-781.05,0.0003,7]
[425842771,1781974245000,-10000.0,0.0003,2]
[425842742,1781974245000,-9700.14,0.0003,2]
[425842773,1781974245000,-151.0,0.0003,7]
[425842864,1781974246000,-500.0,0.00030082,14]
[425842869,1781974246000,-500.0,0.00030082,14]
[425842867,1781974246000,-500.0,0.00030082,14]
[425842881,1781974246000,-199.0613693,0.000301,14]
[425842862,1781974246000,-500.0,0.00030082,14]
[425842866,1781974246000,-500.0,0.00030082,14]
[425842861,1781974246000,-500.0,0.00030082,14]
[425842859,1781974246000,-500.0,0.00030082,14]
[425842860,1781974246000,-500.0,0.00030082,14]
[425842868,1781974246000,-500.0,0.00030082,14]
[425842857,1781974246000,-1005.04,0.00030067,30]
[425842870,1781974246000,-500.0,0.00030082,14]
[425842865,1781974246000,-500.0,0.00030082,14]
[425842880,1781974246000,-199.0613693,0.000301,14]
[425842890,1781974246000,-22500.0,0.00030125,2]
[425842882,1781974246000,-4246.49,0.000301,2]
[425842878,1781974246000,-455.12837187,0.00030082,14]
[425842875,1781974246000,-500.0,0.00030082,14]
[425842872,1781974246000,-500.0,0.00030082,14]
[425842873,1781974246000,-500.0,0.00030082,14]
[425842874,1781974246000,-500.0,0.00030082,14]
[425842871,1781974246000,-500.0,0.00030082,14]
[425842877,1781974246000,-500.0,0.00030082,14]
[425842876,1781974246000,-500.0,0.00030082,14]
[425842883,1781974246000,-2449.0,0.000301,7]
[425842887,1781974246000,-12500.0,0.00030125,2]
[425842884,1781974246000,-15000.0,0.000301,2]
[425842886,1781974246000,-300.0,0.00030124,10]
[425842858,1781974246000,-884.55434748,0.0003007,2]
[425842879,1781974246000,-199.0613693,0.000301,14]
[425842863,1781974246000,-500.0,0.00030082,14]
[425842826,1781974246000,-200.0,0.0003,2]
[425842851,1781974246000,-775.34865008,0.00030025,2]
[425842827,1781974246000,-151.0,0.0003,7]
[425842828,1781974246000,-151.0,0.0003,7]
[425842829,1781974246000,-4868.66,0.0003,2]
[425842833,1781974246000,-277.476282,0.0003,7]
[425842831,1781974246000,-277.476282,0.0003,7]
[425842834,1781974246000,-277.476282,0.0003,7]
[425842840,1781974246000,-277.476282,0.0003,7]
[425842836,1781974246000,-277.476282,0.0003,7]
[425842835,1781974246000,-277.476282,0.0003,7]
[425842832,1781974246000,-277.476282,0.0003,7]
[425842837,1781974246000,-200.0,0.0003,2]
[425842839,1781974246000,-1558.971226,0.0003,2]
[425842830,1781974246000,-952.67606916,0.0003,2]
[425842856,1781974246000,-639.0,0.00030065,30]
[425842838,1781974246000,-277.476282,0.0003,7]
[425842841,1781974246000,-151.0,0.0003,7]
[425842855,1781974246000,-547.23734549,0.00030057,2]
[425842854,1781974246000,-211.18098917,0.0003004,2]
[425842844,1781974246000,-1398.24781486,0.0003,2]
[425842845,1781974246000,-9999.98,0.0003,2]
[425842843,1781974246000,-15000.0,0.0003,2]
[425842846,1781974246000,-15000.0,0.0003,2]
[425842847,1781974246000,-200.0,0.0003,2]
[425842850,1781974246000,-163.0,0.0003002,30]
[425842849,1781974246000,-163.0,0.0003002,30]
[425842852,1781974246000,-501.58,0.00030037,14]
[425842848,1781974246000,-1005.04,0.0003,30]
[425842853,1781974246000,-204.0,0.00030037,2]
[425842842,1781974246000,-161.383188,0.0003,7]
[425842888,1781974246000,-22500.0,0.00030125,2]
[425842952,1781974246000,-153.046751,0.0003014,7]
[425842889,1781974246000,-12500.0,0.00030125,2]
[425842925,1781974246000,-276.0,0.00030137,120]
[425842922,1781974246000,-19241.90259667,0.00030137,120]
[425842924,1781974246000,-8850.17191453,0.00030137,120]
[425842921,1781974246000,-500.0,0.00030137,3]
[425842926,1781974246000,-150.0,0.00030137,120]
[425842927,1781974246000,-209.0,0.00030137,120]
[425842931,1781974246000,-151.0,0.0003014,7]
[425842929,1781974246000,-450.97,0.00030137,120]
[425842928,1781974246000,-174.68406565,0.00030137,120]
[425842930,1781974246000,-150.0,0.00030137,120]
[425842934,1781974246000,-272.974072,0.0003014,7]
[425842936,1781974246000,-151.0,0.0003014,7]
[425842939,1781974246000,-151.0,0.0003014,7]
[425842944,1781974246000,-277.116281,0.0003014,7]
[425842935,1781974246000,-272.974072,0.0003014,7]
[425842941,1781974246000,-151.0,0.0003014,7]
[425842942,1781974246000,-151.0,0.0003014,7]
[425842948,1781974246000,-224.60028,0.0003014,7]
[425842945,1781974246000,-151.0,0.0003014,7]
[425842946,1781974246000,-151.0,0.0003014,7]
[425842947,1781974246000,-151.0,0.0003014,7]
[425842950,1781974246000,-151.0,0.0003014,7]
[425842949,1781974246000,-151.0,0.0003014,7]
[425842954,1781974246000,-151.0,0.0003014,7]
[425842953,1781974246000,-151.0,0.0003014,7]
[425842955,1781974246000,-277.476282,0.0003014,7]
[425842951,1781974246000,-151.0,0.0003014,7]
[425842892,1781974246000,-14161.5865184,0.0003013,2]
[425842956,1781974246000,-277.476282,0.0003014,7]
[425842933,1781974246000,-272.974072,0.0003014,7]
[425842923,1781974246000,-1771.63238124,0.00030137,120]
[425842937,1781974246000,-151.0,0.0003014,7]
[425842917,1781974246000,-152.31089019,0.00030137,5]
[425842885,1781974246000,-15000.0,0.000301,2]
[425842932,1781974246000,-272.974072,0.0003014,7]
[425842895,1781974246000,-481.4711976,0.0003013,2]
[425842894,1781974246000,-206.06622849,0.0003013,2]
[425842893,1781974246000,-647.99229597,0.0003013,2]
[425842896,1781974246000,-303.26670368,0.0003013,2]
[425842897,1781974246000,-73489.0985351,0.0003013,2]
[425842907,1781974246000,-164.35,0.00030136,30]
[425842906,1781974246000,-310.2324538,0.00030136,2]
[425842900,1781974246000,-164.91608721,0.00030134,7]
[425842903,1781974246000,-316.23,0.00030136,30]
[425842898,1781974246000,-909.58,0.0003013,2]
[425842905,1781974246000,-164.41,0.00030136,30]
[425842902,1781974246000,-269.36820077,0.00030135,2]
[425842904,1781974246000,-164.3,0.00030136,30]
[425842891,1781974246000,-1097.29021348,0.0003013,2]
[425842915,1781974246000,-186.98459193,0.00030137,30]
[425842899,1781974246000,-1005.04,0.00030133,30]
[425842908,1781974246000,-547.23734549,0.00030136,2]
[425842910,1781974246000,-397.45521398,0.00030137,2]
[425842909,1781974246000,-183.33,0.00030137,2]
[425842912,1781974246000,-1000.0,0.00030137,30]
[425842911,1781974246000,-150.0,0.00030137,2]
[425842913,1781974246000,-1019.6,0.00030137,30]
[425842919,1781974246000,-438.94107277,0.00030137,3]
[425842914,1781974246000,-1017.11,0.00030137,2]
[425842918,1781974246000,-2737.0,0.00030137,120]
[425842916,1781974246000,-500.0,0.00030137,3]
[425842901,1781974246000,-169.74826695,0.00030135,2]
[425842920,1781974246000,-500.0,0.00030137,3]
[425842997,1781974247000,-3573.98393253,0.0003014,4]
[425842999,1781974247000,-3573.98393253,0.0003014,4]
[425842991,1781974247000,-3573.98393253,0.0003014,4]